fUST/lending_fUST_20250301
["ID","MTS","AMOUNT","RATE_DAILY","PERIOD"]
[354903975,1740807041904,-506.68,0.00039499,2]
[354903976,1740807041914,-500.0,0.00039499,2]
[354903977,1740807041924,-500.0,0.00039499,2]
[354903978,1740807041935,-1320.17,0.00039499,2]
[354903979,1740807041944,-500.0,0.00039499,2]
[354903980,1740807041956,-500.0,0.00039499,2]
[354903981,1740807041966,-500.0,0.00039499,2]
[354903982,1740807041976,-500.0,0.00039499,2]
[354903983,1740807041987,-714.26,0.00039499,2]
[354903984,1740807041997,-250.32898851,0.00039499,2]
[354903985,1740807042008,-500.0,0.00039499,2]
[354903986,1740807042019,-721.7,0.00039499,2]
[354903987,1740807042029,-505.78064217,0.00039499,2]
[354903988,1740807042039,-1726.78,0.00039499,2]
[354903989,1740807042049,-500.0,0.00039499,2]
[354903990,1740807042059,-518.36,0.00039499,2]
[354903991,1740807042069,-1015.51,0.00039499,2]
[354903992,1740807042079,-2302.42,0.00039499,2]
[354903993,1740807042089,-500.0,0.00039499,2]
[354903994,1740807042100,-500.0,0.00039499,2]
[354903995,1740807042110,-500.0,0.00039499,2]
[354903996,1740807042120,-500.0,0.00039499,2]
[354903997,1740807042130,-514.97808468,0.00039499,2]
[354903998,1740807042141,-500.0,0.00039499,2]
[354903999,1740807042151,-500.0,0.00039499,2]
[354904000,1740807042161,-500.0,0.00039499,2]
[354904001,1740807042171,-500.0,0.00039499,2]
[354904002,1740807042181,-500.0,0.00039499,2]
[354904003,1740807042192,-792.7,0.00039499,2]
[354904004,1740807042202,-500.0,0.00039499,2]
[354904005,1740807042212,-500.0,0.00039499,2]
[354904006,1740807042222,-500.0,0.00039499,2]
[354904007,1740807042232,-500.0,0.00039499,2]
[354904008,1740807042242,-500.0,0.00039499,2]
[354904009,1740807042252,-500.0,0.00039499,2]
[354904010,1740807042263,-500.0,0.00039499,2]
[354904011,1740807042272,-500.0,0.00039499,2]
[354904012,1740807042284,-500.0,0.00039499,2]
[354904013,1740807042296,-500.0,0.00039499,2]
[354904014,1740807042308,-500.0,0.00039499,2]
[354904015,1740807042319,-785.23,0.00039499,2]
[354904016,1740807042331,-500.0,0.00039499,2]
[354904017,1740807042343,-500.0,0.00039499,2]
[354904018,1740807042354,-500.0,0.00039499,2]
[354904019,1740807042366,-500.0,0.00039499,2]
[354904020,1740807042376,-500.0,0.00039499,2]
[354904021,1740807042386,-500.0,0.00039499,2]
[354904022,1740807042396,-500.0,0.00039499,2]
[354904023,1740807042406,-500.0,0.00039499,2]
[354904024,1740807042418,-209.54869711,0.00039499,2]
[354904025,1740807042428,-564.47,0.00039499,2]
[354904026,1740807042438,-500.0,0.00039499,2]
[354904027,1740807042450,-500.0,0.00039499,2]
[354904028,1740807042460,-500.0,0.00039499,2]
[354904029,1740807042470,-500.0,0.00039499,2]
[354904030,1740807042481,-500.0,0.00039499,2]
[354904031,1740807042492,-500.0,0.00039499,2]
[354904032,1740807042503,-500.0,0.00039499,2]
[354904033,1740807042513,-500.0,0.00039499,2]
[354904034,1740807042522,-500.0,0.00039499,2]
[354904035,1740807042535,-500.0,0.00039499,2]
[354904036,1740807042546,-500.0,0.00039499,2]
[354904037,1740807042556,-833.81,0.00039499,2]
[354904038,1740807042565,-500.0,0.00039499,2]
[354904039,1740807042576,-500.0,0.00039499,2]
[354904040,1740807042586,-1280.02,0.00039499,2]
[354904041,1740807042597,-500.0,0.00039499,2]
[354904042,1740807042608,-500.0,0.00039499,2]
[354904043,1740807042619,-420.67269332,0.00039499,2]
[354904044,1740807042629,-500.0,0.00039499,2]
[354904045,1740807042640,-500.0,0.00039499,2]
[354904046,1740807042651,-500.0,0.00039499,2]
[354904047,1740807042661,-500.0,0.00039499,2]
[354904048,1740807042673,-1038.78,0.00039499,2]
[354904049,1740807042684,-500.0,0.00039499,2]
[354904050,1740807042699,-732.07,0.00039499,2]
[354904051,1740807042714,-1584.6,0.00039499,2]
[354904052,1740807042725,-350.0,0.00039499,14]
[354904053,1740807042737,-350.0,0.00039499,14]
[354904054,1740807042748,-350.0,0.00039499,14]
[354904055,1740807042759,-350.0,0.00039499,14]
[354904056,1740807042772,-350.0,0.00039499,14]
[354904057,1740807042783,-350.0,0.00039499,14]
[354904058,1740807042795,-350.0,0.00039499,14]
[354904059,1740807042806,-500.0,0.00039499,2]
[354904060,1740807042816,-350.0,0.00039499,14]
[354904061,1740807042827,-350.0,0.00039499,14]
[354904062,1740807042838,-350.0,0.00039499,14]
[354904063,1740807042850,-350.0,0.00039499,14]
[354904064,1740807042861,-350.0,0.00039499,14]
[354904065,1740807042871,-500.0,0.00039499,2]
[354904066,1740807042882,-500.0,0.00039499,2]
[354904067,1740807042893,-350.0,0.00039499,14]
[354904068,1740807042903,-350.0,0.00039499,14]
[354904069,1740807042914,-350.0,0.00039499,14]
[354904070,1740807042925,-350.0,0.00039499,14]
[354904071,1740807042936,-350.0,0.00039499,14]
[354904072,1740807042946,-350.0,0.00039499,14]
[354904073,1740807042957,-500.0,0.00039499,2]
[354904074,1740807042967,-350.0,0.00039499,14]
[354904075,1740807042978,-350.0,0.00039499,14]
[354904076,1740807042989,-350.0,0.00039499,14]
[354904077,1740807042999,-350.0,0.00039499,14]
[354904078,1740807043011,-350.0,0.00039499,14]
[354904079,1740807043026,-350.0,0.00039499,14]
[354904080,1740807043036,-350.0,0.00039499,14]
[354904081,1740807043047,-350.0,0.00039499,14]
[354904082,1740807043058,-350.0,0.00039499,14]
[354904083,1740807043069,-350.0,0.00039499,14]
[354904084,1740807043080,-500.0,0.00039499,2]
[354904085,1740807043091,-350.0,0.00039499,14]
[354904086,1740807043102,-350.0,0.00039499,14]
[354904087,1740807043113,-350.0,0.00039499,14]
[354904088,1740807043123,-350.0,0.00039499,14]
[354904089,1740807043134,-585.36,0.00039499,2]
[354904090,1740807043145,-350.0,0.00039499,14]
[354904091,1740807043156,-350.0,0.00039499,14]
[354904092,1740807043167,-350.0,0.00039499,14]
[354904093,1740807043177,-350.0,0.00039499,14]
[354904094,1740807043188,-350.0,0.00039499,14]
[354904095,1740807043199,-350.0,0.00039499,14]
[354904096,1740807043210,-350.0,0.00039499,14]
[354904097,1740807043221,-447.18107019,0.00039499,14]
[354904099,1740807043233,-500.0,0.00039499,2]
[354904101,1740807043245,-500.0,0.00039499,2]
[354904103,1740807043256,-500.0,0.00039499,2]
[354904104,1740807043269,-500.0,0.00039499,2]
[354904105,1740807043279,-500.0,0.00039499,2]
[354904106,1740807043290,-503.74258211,0.00039499,2]
[354904107,1740807043300,-500.0,0.00039499,2]
[354904108,1740807043311,-500.0,0.00039499,2]
[354904109,1740807043321,-830.1,0.00039499,2]
[354904110,1740807043331,-500.0,0.00039499,2]
[354904111,1740807043341,-1017.32,0.00039499,2]
[354904112,1740807043352,-500.0,0.00039499,2]
[354904113,1740807043362,-504.10048671,0.00039499,2]
[354904114,1740807043373,-500.0,0.00039499,2]
[354904115,1740807043384,-500.0,0.00039499,2]
[354904116,1740807043395,-500.0,0.00039499,2]
[354904117,1740807043405,-500.0,0.00039499,2]
[354904118,1740807043415,-658.25,0.00039499,2]
[354904119,1740807043425,-257.09457532,0.00039499,2]
[354904120,1740807043437,-500.0,0.00039499,2]
[354904121,1740807043451,-500.0,0.00039499,2]
[354904122,1740807043461,-500.0,0.00039499,2]
[354904123,1740807043472,-502.17,0.00039499,2]
[354904125,1740807043482,-929.68,0.00039499,2]
[354904127,1740807043493,-2391.15,0.00039499,2]
[354904129,1740807043503,-500.0,0.00039499,2]
[354904131,1740807043514,-589.54,0.00039499,2]
[354904133,1740807043525,-239.42891836,0.00039499,2]
[354904136,1740807043536,-592.94723038,0.00039499,2]
[354904139,1740807043546,-500.0,0.00039499,2]
[354904143,1740807043556,-500.0,0.00039499,2]
[354904145,1740807043567,-345.7340843,0.00039499,2]
[354904147,1740807043577,-500.0,0.00039499,2]
[354904149,1740807043591,-500.0,0.00039499,2]
[354904150,1740807043602,-509.17010742,0.00039499,2]
[354904151,1740807043613,-7151.75,0.00039499,2]
[354904152,1740807043623,-500.0,0.00039499,2]
[354904153,1740807043634,-500.0,0.00039499,2]
[354904154,1740807043645,-500.0,0.00039499,2]
[354904155,1740807043655,-500.0,0.00039499,2]
[354904156,1740807043667,-500.0,0.00039499,2]
[354904157,1740807043677,-500.0,0.00039499,2]
[354904158,1740807043688,-500.0,0.00039499,2]
[354904159,1740807043699,-500.0,0.00039499,2]
[354904160,1740807043710,-500.0,0.00039499,2]
[354904161,1740807043722,-500.0,0.00039499,2]
[354904162,1740807043734,-500.0,0.00039499,2]
[354904163,1740807043745,-500.0,0.00039499,2]
[354904164,1740807043755,-1098.66,0.00039499,2]
[354904165,1740807043767,-500.0,0.00039499,2]
[354904166,1740807043777,-14110.54,0.00039499,2]
[354904167,1740807043789,-500.0,0.00039499,2]
[354904168,1740807043799,-500.0,0.00039499,2]
[354904169,1740807043810,-2268.86,0.00039499,2]
[354904170,1740807043821,-500.0,0.00039499,2]
[354904171,1740807043832,-526.79,0.00039499,2]
[354904172,1740807043843,-500.0,0.00039499,2]
[354904173,1740807043855,-500.0,0.00039499,2]
[354904174,1740807043866,-500.0,0.00039499,2]
[354904175,1740807043876,-500.0,0.00039499,2]
[354904176,1740807043886,-3143.93,0.00039499,2]
[354904177,1740807043896,-240315.46,0.00039499,2]
[354904178,1740807043906,-452.45438687,0.00039499,2]
[354904179,1740807043917,-500.0,0.00039499,2]
[354904180,1740807043927,-500.0,0.00039499,2]
[354904181,1740807043938,-500.0,0.00039499,2]
[354904182,1740807043948,-500.0,0.00039499,2]
[354904183,1740807043959,-2039.67,0.00039499,2]
[354904184,1740807043969,-500.0,0.00039499,2]
[354904185,1740807043979,-500.0,0.00039499,2]
[354904186,1740807043990,-629.24,0.00039499,2]
[354904187,1740807044001,-2322.08,0.00039499,2]
[354904188,1740807044012,-500.0,0.00039499,2]
[354904189,1740807044312,-500.0,0.00039499,2]
[354904190,1740807044323,-500.0,0.00039499,2]
[354904191,1740807044332,-179.72137568,0.00039499,2]
[354904192,1740807044342,-500.0,0.00039499,2]
[354904193,1740807044351,-6169.46,0.00039499,2]
[354904194,1740807044361,-500.0,0.00039499,2]
[354904195,1740807044370,-500.0,0.00039499,2]
[354904196,1740807044379,-500.0,0.00039499,2]
[354904197,1740807044389,-500.0,0.00039499,2]
[354904198,1740807044398,-507.1778751,0.00039499,2]
[354904199,1740807044407,-500.0,0.00039499,2]
[354904200,1740807044417,-500.0,0.00039499,2]
[354904201,1740807044426,-500.0,0.00039499,2]
[354904202,1740807044436,-627.38,0.00039499,2]
[354904203,1740807044446,-500.0,0.00039499,2]
[354904204,1740807044459,-621.57,0.00039499,2]
[354904205,1740807044468,-500.0,0.00039499,2]
[354904206,1740807044477,-1398.42,0.00039499,2]
[354904207,1740807044487,-1289.08,0.00039499,2]
[354904208,1740807044496,-500.0,0.00039499,2]
[354904209,1740807044505,-500.0,0.00039499,2]
[354904210,1740807044515,-500.0,0.00039499,2]
[354904211,1740807044525,-500.0,0.00039499,2]
[354904212,1740807044535,-931.7,0.00039499,2]
[354904213,1740807044545,-500.0,0.00039499,2]
[354904214,1740807044555,-1199.0,0.00039499,2]
[354904215,1740807044565,-500.0,0.00039499,2]
[354904216,1740807044574,-500.0,0.00039499,2]
[354904217,1740807044583,-500.0,0.00039499,2]
[354904218,1740807044593,-500.0,0.00039499,2]
[354904219,1740807044602,-399.54524649,0.00039499,2]
[354904220,1740807044613,-500.0,0.00039499,2]
[354904221,1740807044623,-500.0,0.00039499,2]
[354904222,1740807044632,-517.33893347,0.00039499,2]
[354904223,1740807044642,-1718.48,0.00039499,2]
[354904224,1740807044651,-500.0,0.00039499,2]
[354904225,1740807044661,-500.0,0.00039499,2]
[354904226,1740807044670,-500.0,0.00039499,2]
[354904227,1740807044680,-500.0,0.00039499,2]
[354904228,1740807044689,-350.0,0.00039499,14]
[354904229,1740807044699,-350.0,0.00039499,14]
[354904230,1740807044709,-500.0,0.00039499,2]
[354904231,1740807044719,-521.441847,0.00039499,2]
[354904232,1740807044728,-500.0,0.00039499,2]
[354904233,1740807044738,-500.0,0.00039499,2]
[354904234,1740807044747,-514.09717767,0.00039499,2]
[354904235,1740807044757,-500.31,0.00039499,2]
[354904236,1740807044768,-507.56002546,0.00039499,2]
[354904237,1740807044777,-14209.0,0.000395,30]
[354904238,1740807044786,-252617.79694014,0.000395,120]
[354904250,1740807046823,-81.11009426,0.00038999,2]
[354904270,1740808046115,-513.1343925,0.000368,101]
[354904274,1740808052092,-388.95185356,0.000368,101]
[354904275,1740808052121,-926.34994871,0.000368,101]
[354904281,1740808146107,-24900.0,0.00036812,2]
[354904282,1740808146136,-377.98152787,0.000369,7]
[354904283,1740808146163,-160.0,0.00036921,3]
[354904284,1740808146190,-500.0,0.00036973,2]
[354904285,1740808146217,-424.21691199,0.000374,2]
[354904286,1740808146245,-377.98152776,0.00037521,7]
[354904287,1740808146273,-1004.10533662,0.00038,120]
[354904288,1740808146303,-377.98152776,0.00038141,8]
[354904289,1740808146330,-160.0,0.00038186,4]
[354904307,1740808234817,-2581.03853031,0.00038699,112]
[354904308,1740808234827,-377.98152776,0.00038762,8]
[354904309,1740808234838,-6500.99,0.000388,2]
[354904310,1740808234848,-3507.55332122,0.000388,60]
[354904311,1740808234857,-485.61329359,0.00038897,2]
[354904312,1740808234866,-485.61329355,0.00038897,2]
[354904313,1740808234876,-485.61329355,0.00038898,2]
[354904314,1740808234885,-485.61329355,0.00038898,2]
[354904315,1740808234894,-485.61329355,0.00038898,2]
[354904316,1740808234905,-3000.0,0.00038899,2]
[354904317,1740808234915,-877.8486741,0.00038915,4]
[354904318,1740808234924,-500.0,0.00038973,5]
[354904319,1740808234934,-500.0,0.00038973,5]
[354904320,1740808234943,-502.59518066,0.00038973,5]
[354904321,1740808234952,-500.0,0.00038973,5]
[354904322,1740808234962,-500.0,0.00038973,5]
[354904323,1740808234971,-501.41986996,0.00038973,2]
[354904324,1740808234980,-500.0,0.00038973,5]
[354904325,1740808234989,-500.0,0.00038973,5]
[354904326,1740808234998,-500.0,0.00038973,5]
[354904327,1740808235007,-500.0,0.00038973,5]
[354904328,1740808235016,-600.76291128,0.00038973,5]
[354904329,1740808235025,-500.0,0.00038973,5]
[354904330,1740808235035,-500.0,0.00038973,5]
[354904331,1740808235044,-501.1688696,0.00038973,5]
[354904332,1740808235054,-500.0,0.00038973,5]
[354904333,1740808235064,-276.54783181,0.00038973,5]
[354904334,1740808235074,-503.29686904,0.00038973,5]
[354904335,1740808235083,-500.0,0.00038973,5]
[354904336,1740808235094,-499.80764537,0.00038973,5]
[354904337,1740808235103,-567.34905296,0.00038973,5]
[354904338,1740808235112,-500.80104602,0.00038973,5]
[354904339,1740808235122,-500.0,0.00038973,5]
[354904340,1740808235131,-500.0,0.00038973,5]
[354904341,1740808235140,-500.0,0.00038973,5]
[354904342,1740808235149,-500.0,0.00038973,5]
[354904343,1740808235159,-500.0,0.00038973,5]
[354904344,1740808235168,-500.0,0.00038973,3]
[354904345,1740808235177,-500.0,0.00038973,5]
[354904346,1740808235187,-302.0,0.00038976,2]
[354904347,1740808235198,-500.0,0.00038976,2]
[354904348,1740808235208,-499.77,0.00038986,3]
[354904349,1740808235217,-500.0,0.00038987,15]
[354904350,1740808235227,-500.0,0.00038987,15]
[354904351,1740808235237,-500.0,0.00038987,2]
[354904352,1740808235246,-500.0,0.00038987,15]
[354904353,1740808235256,-500.0,0.00038987,15]
[354904354,1740808235265,-500.0,0.00038987,15]
[354904355,1740808235274,-500.0,0.00038987,15]
[354904356,1740808235283,-500.0,0.00038987,15]
[354904357,1740808235292,-500.0,0.00038987,15]
[354904358,1740808235302,-274.14943133,0.00038987,15]
[354904359,1740808235311,-1589.04,0.00038988,120]
[354904360,1740808235320,-2000.0,0.00038988,120]
[354904361,1740808235330,-2000.0,0.00038988,120]
[354904362,1740808235340,-2000.0,0.00038988,120]
[354904363,1740808235349,-2000.0,0.00038988,120]
[354904364,1740808235358,-500.0,0.00038988,2]
[354904365,1740808235367,-2000.0,0.00038989,120]
[354904366,1740808235376,-2000.0,0.00038989,120]
[354904367,1740808235386,-2000.0,0.00038989,120]
[354904368,1740808235395,-2000.0,0.00038989,120]
[354904369,1740808235404,-2000.0,0.00038989,120]
[354904370,1740808235414,-507.26531725,0.00038995,2]
[354904371,1740808235423,-687.87,0.00038995,2]
[354904372,1740808235432,-519.74391479,0.00038996,2]
[354904373,1740808235441,-500.0,0.00038996,2]
[354904374,1740808235451,-500.0,0.00038996,2]
[354904375,1740808235461,-500.0,0.00038996,2]
[354904376,1740808235470,-500.0,0.00038996,2]
[354904377,1740808235479,-500.0,0.00038996,2]
[354904378,1740808235489,-718.99,0.00038996,2]
[354904379,1740808235498,-260.35732399,0.00038996,2]
[354904380,1740808235508,-1554.19,0.00038996,2]
[354904381,1740808235518,-500.0,0.00038996,2]
[354904382,1740808235527,-500.0,0.00038996,2]
[354904383,1740808235536,-504.21434736,0.00038996,2]
[354904384,1740808235545,-500.0,0.00038996,2]
[354904385,1740808235554,-500.0,0.00038996,2]
[354904386,1740808235563,-500.0,0.00038996,2]
[354904387,1740808235572,-557.32631037,0.00038996,2]
[354904388,1740808235582,-500.0,0.00038996,2]
[354904389,1740808235591,-500.0,0.00038996,2]
[354904390,1740808235600,-500.0,0.00038996,2]
[354904391,1740808235610,-511.9,0.00038996,2]
[354904392,1740808235619,-500.0,0.00038996,2]
[354904393,1740808235628,-500.0,0.00038996,2]
[354904394,1740808235637,-500.0,0.00038996,2]
[354904395,1740808235647,-500.0,0.00038996,2]
[354904396,1740808235656,-500.0,0.00038996,2]
[354904397,1740808235665,-500.0,0.00038996,2]
[354904398,1740808235675,-500.0,0.00038996,2]
[354904399,1740808235684,-500.0,0.00038996,2]
[354904400,1740808235693,-500.0,0.00038996,2]
[354904401,1740808235702,-840.89,0.00038996,2]
[354904402,1740808235712,-500.0,0.00038996,2]
[354904403,1740808235721,-381.1128801,0.00038996,2]
[354904404,1740808235731,-500.0,0.00038996,2]
[354904405,1740808235740,-850.3,0.00038996,2]
[354904406,1740808235750,-500.0,0.00038996,2]
[354904407,1740808235759,-500.0,0.00038996,2]
[354904408,1740808235768,-611.9,0.00038996,2]
[354904409,1740808235778,-574.28048632,0.00038996,2]
[354904410,1740808235787,-500.0,0.00038996,2]
[354904411,1740808235796,-500.0,0.00038996,2]
[354904412,1740808235805,-521.38,0.00038996,2]
[354904413,1740808235815,-576.8,0.00038996,2]
[354904414,1740808235825,-500.0,0.00038996,2]
[354904415,1740808235839,-525.79376255,0.00038996,2]
[354904416,1740808235848,-500.0,0.00038996,2]
[354904417,1740808235857,-500.0,0.00038996,2]
[354904418,1740808235867,-515.89,0.00038996,2]
[354904419,1740808235877,-500.0,0.00038996,2]
[354904420,1740808235887,-519.62972277,0.00038996,2]
[354904421,1740808235896,-500.0,0.00038996,2]
[354904422,1740808235906,-500.0,0.00038996,2]
[354904423,1740808235915,-566.20625153,0.00038996,2]
[354904424,1740808235924,-594.86,0.00038996,2]
[354904425,1740808235934,-500.0,0.00038996,2]
[354904426,1740808235943,-500.0,0.00038996,2]
[354904427,1740808235952,-500.0,0.00038996,2]
[354904428,1740808235961,-500.0,0.00038996,2]
[354904429,1740808235971,-695.41,0.00038996,2]
[354904430,1740808235980,-500.0,0.00038996,2]
[354904431,1740808235990,-669.44,0.00038996,2]
[354904432,1740808236000,-500.0,0.00038996,2]
[354904433,1740808236010,-1365.47,0.00038996,2]
[354904434,1740808236019,-200.0,0.00038996,2]
[354904435,1740808236028,-500.0,0.00038996,2]
[354904436,1740808236037,-500.0,0.00038996,15]
[354904437,1740808236047,-500.0,0.00038996,15]
[354904438,1740808236057,-601.52346092,0.00038996,15]
[354904439,1740808236067,-500.0,0.00038996,15]
[354904440,1740808236078,-500.0,0.00038996,15]
[354904441,1740808236087,-160.32346508,0.00038996,15]
[354904442,1740808236096,-500.0,0.00038996,2]
[354904443,1740808236107,-500.0,0.00038996,2]
[354904444,1740808236116,-636.24,0.00038996,2]
[354904445,1740808236125,-500.0,0.00038996,2]
[354904446,1740808236134,-500.0,0.00038996,2]
[354904447,1740808236144,-500.0,0.00038996,2]
[354904448,1740808236152,-642.34,0.00038996,2]
[354904449,1740808236162,-500.0,0.00038996,2]
[354904450,1740808236171,-3699.8,0.00038996,2]
[354904451,1740808236180,-1480.11,0.00038996,5]
[354904452,1740808236190,-500.0,0.00038996,2]
[354904453,1740808236199,-500.0,0.00038996,2]
[354904454,1740808236208,-1906.28,0.00038996,2]
[354904455,1740808236218,-1119.96,0.00038996,2]
[354904456,1740808236227,-1003.6,0.00038996,2]
[354904457,1740808236237,-1420.25,0.00038996,2]
[354904458,1740808236247,-500.0,0.00038996,2]
[354904459,1740808236256,-500.0,0.00038996,2]
[354904460,1740808236266,-841.86,0.00038996,2]
[354904461,1740808236275,-1269.78,0.00038996,2]
[354904462,1740808236285,-500.0,0.00038996,2]
[354904463,1740808236294,-500.0,0.00038996,2]
[354904464,1740808236303,-500.0,0.00038997,2]
[354904465,1740808236312,-2228.57,0.00038997,2]
[354904466,1740808236321,-500.0,0.00038997,2]
[354904467,1740808236332,-561.17,0.00038997,2]
[354904468,1740808236342,-561.64,0.00038997,2]
[354904469,1740808236351,-921.11,0.00038997,2]
[354904470,1740808236360,-500.0,0.00038997,2]
[354904471,1740808236370,-500.0,0.00038997,2]
[354904472,1740808236379,-500.0,0.00038997,2]
[354904473,1740808236388,-500.0,0.00038997,2]
[354904474,1740808236397,-926.29,0.00038997,2]
[354904475,1740808236407,-500.0,0.00038997,2]
[354904476,1740808236416,-500.0,0.00038997,2]
[354904477,1740808236425,-2747.21,0.00038997,2]
[354904478,1740808236434,-722.99,0.00038997,2]
[354904479,1740808236444,-500.0,0.00038997,2]
[354904480,1740808236453,-500.0,0.00038997,2]
[354904481,1740808236462,-2593.99,0.00038997,2]
[354904482,1740808236472,-14756.76,0.00038997,2]
[354904483,1740808236482,-500.0,0.00038997,2]
[354904484,1740808236492,-4559.94,0.00038997,2]
[354904485,1740808236501,-2812.66,0.00038997,2]
[354904486,1740808236511,-500.0,0.00038997,2]
[354904487,1740808236522,-4567.15,0.00038997,2]
[354904488,1740808236532,-1869.07,0.00038997,2]
[354904489,1740808236747,-841.27,0.00038997,2]
[354904490,1740808236757,-679.2,0.00038997,2]
[354904491,1740808236767,-1043.06,0.00038997,2]
[354904492,1740808236777,-748.04,0.00038997,2]
[354904493,1740808236786,-1712.46,0.00038997,2]
[354904494,1740808236796,-1734.85,0.00038997,2]
[354904495,1740808236805,-745.1,0.00038997,2]
[354904496,1740808236814,-4326.44,0.00038997,2]
[354904497,1740808236825,-812.46,0.00038997,2]
[354904498,1740808236839,-765.93,0.00038997,2]
[354904499,1740808236848,-2627.28,0.00038997,2]
[354904500,1740808236858,-609.16,0.00038997,2]
[354904501,1740808236867,-500.0,0.00038997,2]
[354904502,1740808236878,-2763.58,0.00038997,2]
[354904503,1740808236887,-443.6303946,0.00038997,2]
[354904531,1740808243130,282.81127466,0.00036897,2]
[354904545,1740808248907,500.0,0.00036973,2]
[354904550,1740808718483,180.0,0.00022,12]
[354904559,1740809171344,-4000.0,0.00026,3]
[354904560,1740809236148,-300.0,0.00025999,2]
[354904561,1740809236181,-2687.34071822,0.00026,3]
[354904562,1740809244330,-1892.63499487,0.00026,3]
[354904563,1740809252091,-755.26463887,0.00026,3]
[354904564,1740809254663,-10289.37146805,0.00026,3]
[354904565,1740809254689,-343.22137393,0.000269,4]
[354904566,1740809254714,-343.22137378,0.00027521,4]
[354904567,1740809254739,-420.0,0.00028137,2]
[354904568,1740809254762,-343.22137378,0.00028141,5]
[354904569,1740809254788,-343.22137378,0.00028762,5]
[354904570,1740809254813,-343.22137378,0.00029383,5]
[354904571,1740809254837,-343.22137378,0.00030003,5]
[354904572,1740809254859,-204.0,0.0003045,2]
[354904573,1740809254883,-343.22137378,0.00030624,5]
[354904574,1740809254907,-343.22137378,0.00031245,5]
[354904575,1740809254930,-343.22137378,0.00031866,6]
[354904576,1740809254953,-343.22137378,0.00032486,6]
[354904577,1740809254979,-343.22137378,0.00033107,6]
[354904578,1740809255003,-343.22137378,0.00033728,6]
[354904579,1740809255026,-343.22137378,0.00034348,6]
[354904580,1740809255048,-235.74643017,0.00034873,2]
[354904588,1740809350105,-35.21380976,0.00034873,2]
[354904589,1740809350131,-343.22137378,0.00034969,7]
[354904590,1740809350172,-343.22137378,0.0003559,7]
[354904591,1740809350214,-343.22137378,0.0003621,7]
[354904592,1740809350255,-2064.83082424,0.00036494,99]
[354904593,1740809350294,-3141.75202125,0.000365,20]
[354904594,1740809351072,-6858.24797875,0.000365,20]
[354904595,1740809351096,-500.0,0.00036593,15]
[354904596,1740809351119,-500.0,0.00036593,15]
[354904597,1740809351140,-500.0,0.00036593,15]
[354904598,1740809351163,-500.0,0.00036593,2]
[354904599,1740809351189,-500.0,0.00036593,15]
[354904600,1740809351214,-500.0,0.00036593,2]
[354904601,1740809351257,-500.0,0.00036593,15]
[354904602,1740809351297,-500.0,0.00036593,15]
[354904603,1740809351340,-500.0,0.00036593,2]
[354904604,1740809351382,-500.0,0.00036593,15]
[354904605,1740809351423,-500.0,0.00036593,2]
[354904606,1740809351445,-500.0,0.00036593,15]